bitfinex/quotes_ETHUSD_20250903
["timestamp","ask_amount","ask_price","bid_price","bid_amount"]
[1756917918574,0.002,4465.6,4465.5,4.19183041]
[1756917920226,0.002,4465.6,4465.5,3.75753041]
[1756917920966,0.002,4465.6,4465.5,3.29913041]
[1756917921156,0.002,4465.6,4465.5,2.66179088]
[1756917922752,0.002,4465.6,4465.5,3.12019088]
[1756917923823,0.002,4465.6,4465.5,2.66179088]
[1756917925662,0.002,4465.6,4465.5,0.112]
[1756917925663,0.2874,4465.6,4465.5,0.112]
[1756917925966,1.3047,4465.6,4464.3,2.24096755]
[1756917926137,0.112,4464.9,4464.3,0.113]
[1756917926333,3.904,4464.9,4464.3,0.113]
[1756917926652,5.0947,4464.9,4464.3,0.113]
[1756917927253,7.33439181,4464.9,4464.3,0.001]
[1756917927564,5.0947,4464.9,4464.3,0.001]
[1756917927759,0.8736,4464.9,4464.3,0.001]
[1756917928092,0.4762,4465.5,4464.8,0.3364]
[1756917928391,0.56598101,4465.5,4464.9,2.23969181]
[1756917928601,0.4291,4465.4,4464.8,0.138]
[1756917929166,0.4291,4465.4,4464.9,2.23969181]
[1756917929377,0.4291,4465.3,4464.9,2.23969181]
[1756917929697,0.4405,4465.3,4465.0,2.23962904]
[1756917929884,0.4405,4465.3,4464.8,0.138]
[1756917930299,0.4405,4465.3,4464.9,2.23969062]
[1756917930865,0.4405,4465.3,4464.8,2.37769289]
[1756917931074,0.4405,4465.3,4464.8,0.138]
[1756917931304,0.2918,4464.9,4464.8,0.026]
[1756917931473,5.0083,4464.9,4464.8,0.026]
[1756917932009,5.0083,4464.9,4464.8,0.3408]
[1756917932010,3.79,4464.9,4464.8,0.3408]
[1756917932304,3.79,4464.9,4464.8,0.026]
[1756917932607,3.79,4464.9,4464.8,2.26574198]
[1756917934665,3.788,4465.2,4464.8,2.26574198]
[1756917935167,3.788,4465.2,4464.9,2.23969128]
[1756917935367,0.112,4465.3,4464.9,2.23969128]
[1756917935590,3.788,4465.2,4464.9,2.23969128]
[1756917935980,3.788,4465.2,4464.8,0.026]
[1756917935981,0.2918,4465.0,4464.8,0.026]
[1756917936174,3.788,4465.2,4464.8,0.026]
[1756917936387,3.788,4465.2,4464.9,2.55449181]
[1756917936694,0.2918,4465.0,4464.8,0.026]
[1756917937059,3.27819181,4464.9,4464.8,0.026]
[1756917937460,3.56999181,4464.9,4464.8,0.026]
[1756917937660,1.3303,4464.9,4464.8,0.026]
[1756917939896,3.56999181,4464.9,4464.8,0.026]
[1756917941513,6.56999181,4464.9,4464.8,0.026]
[1756917941719,7.94242385,4464.9,4464.8,0.026]
[1756917941865,7.64005387,4464.9,4464.8,0.026]
[1756917942175,7.36199181,4464.9,4464.8,0.026]
[1756917943710,11.14899181,4464.9,4464.8,0.026]
[1756917946321,7.35499181,4464.9,4464.8,0.026]
[1756917946474,10.35499181,4464.9,4464.8,0.026]
[1756917947572,6.56999181,4464.9,4464.8,0.026]
[1756917947811,10.35399181,4464.9,4464.8,0.026]
[1756917948912,0.112,4464.9,4464.8,0.3408]
[1756917949117,3.9,4464.9,4464.8,0.026]
[1756917949521,6.13969181,4464.9,4464.8,0.026]
[1756917949884,6.13969181,4464.9,4464.8,0.3408]
[1756917950284,6.43149181,4464.9,4464.8,0.026]
[1756917950988,6.13969181,4464.9,4464.8,0.026]
[1756917951174,6.43149181,4464.9,4464.8,0.026]
[1756917951380,7.35799181,4464.9,4464.8,0.026]
[1756917951817,10.35799181,4464.9,4464.8,0.026]
[1756917953995,0.113,4465.0,4464.8,0.3408]
[1756917954194,3.788,4464.9,4464.8,0.3408]
[1756917955316,6.02769181,4464.9,4464.8,0.3408]
[1756917955516,6.02769181,4464.9,4464.8,0.026]
[1756917955904,3.788,4464.9,4464.8,0.026]
[1756917956306,6.02769181,4464.9,4464.8,0.026]
[1756917956514,3.788,4464.9,4464.8,0.026]
[1756917956715,6.31949181,4464.9,4464.8,0.026]
[1756917957115,4.0798,4464.9,4464.8,0.026]
[1756917957320,3.788,4464.9,4464.8,0.3408]
[1756917957619,6.75999181,4464.9,4464.8,0.026]
[1756917957782,7.24599181,4464.9,4464.8,0.026]
[1756917959902,2.97199181,4464.9,4464.8,0.026]
[1756917960209,6.31649181,4464.9,4464.8,0.026]
[1756917960411,7.23369181,4464.9,4464.8,0.026]
[1756917961703,3.784,4464.9,4464.8,0.8242]
[1756917962094,3.784,4464.9,4464.8,0.3379]
[1756917962530,3.784,4464.9,4464.8,0.026]
[1756917962531,6.02369181,4464.9,4464.8,0.026]
[1756917962695,6.30999181,4464.9,4464.8,0.026]
[1756917962895,6.73799181,4464.9,4464.8,0.026]
[1756917963241,7.22719181,4464.9,4464.8,0.026]
[1756917963732,10.22719181,4464.9,4464.8,0.026]
[1756917964026,10.33919181,4464.9,4464.8,0.026]
[1756917966611,6.06599181,4464.9,4464.8,0.026]
[1756917966808,10.33919181,4464.9,4464.8,0.026]
[1756917970411,9.42199181,4464.9,4464.8,0.026]
[1756917970614,9.84999181,4464.9,4464.8,0.026]
[1756917970851,9.13569181,4464.9,4464.8,0.026]
[1756917972054,3.112,4464.9,4464.8,0.3379]
[1756917972346,9.13569181,4464.9,4464.8,0.3379]
[1756917973043,9.13569181,4464.9,4464.8,0.026]
[1756917973614,16.15569181,4464.9,4464.8,0.026]
[1756917973815,7.132,4464.9,4464.8,0.8242]
[1756917974045,10.916,4464.9,4464.8,1.2684]
[1756917974638,10.916,4464.9,4464.8,0.3379]
[1756917976135,7.132,4464.9,4464.8,1.2684]
[1756917976319,10.916,4464.9,4464.8,0.8242]
[1756917976520,10.916,4464.9,4464.8,0.3379]
[1756917976925,13.44199181,4464.9,4464.8,0.026]
[1756917977126,13.15569181,4464.9,4464.8,0.3379]
[1756917977327,10.916,4464.9,4464.8,0.3379]
[1756917977661,12.31252562,4464.9,4464.8,0.3379]
[1756917977953,16.09652562,4464.9,4464.8,0.3379]
[1756917978319,7.132,4464.9,4464.8,0.3379]
[1756917978556,10.804,4464.9,4464.8,0.3379]
[1756917981337,13.86999181,4464.9,4464.8,0.026]
[1756917981659,10.916,4464.9,4464.8,0.026]
[1756917982030,10.916,4464.9,4464.8,0.3379]
[1756917982425,10.804,4464.9,4464.8,0.3379]
[1756917982626,10.804,4464.9,4464.8,0.8242]
[1756917984038,7.02,4464.9,4464.8,0.3379]
[1756917984239,10.804,4464.9,4464.8,0.3379]
[1756917985636,1.722,4465.1,4464.8,1.2684]
[1756917985934,3.784,4465.0,4464.8,0.8242]
[1756917986460,3.784,4465.0,4464.8,0.3379]
[1756917986760,3.784,4465.0,4464.9,2.72599181]
[1756917986950,3.784,4465.0,4464.9,3.03789181]
[1756917987866,1.722,4465.1,4465.0,2.23964165]
[1756917988031,5.506,4465.1,4465.0,2.23964165]
[1756917988371,5.506,4465.1,4465.0,0.3119]
[1756917991344,5.506,4465.1,4464.9,2.23967936]
[1756917991842,5.506,4465.1,4465.0,2.53684165]
[1756917992168,5.506,4465.1,4465.0,0.2972]
[1756917992562,5.506,4465.1,4465.0,2.53684165]
[1756917993071,5.506,4465.1,4465.0,0.2972]
[1756917993263,5.506,4465.1,4465.0,2.53684165]
[1756917993476,5.506,4465.1,4465.0,0.2972]
[1756917993860,5.506,4465.1,4465.0,2.53684165]
[1756917996351,5.8042,4465.1,4464.8,0.026]
[1756917996552,0.8985,4465.0,4464.8,0.026]
[1756917996765,3.783,4464.9,4464.8,0.026]
[1756917997138,3.783,4464.9,4464.8,0.3232]
[1756917997446,1.722,4465.1,4464.9,2.23969181]
[1756917997669,3.783,4465.0,4464.9,2.23969181]
[1756917997869,3.783,4465.0,4464.9,2.53689181]
[1756917998174,1.722,4465.1,4465.0,2.23964165]
[1756917998544,5.505,4465.1,4465.0,2.53684165]
[1756917998941,5.505,4465.1,4465.0,0.2972]
[1756917999150,5.505,4465.1,4464.9,0.112]
[1756917999355,5.8032,4465.1,4464.9,2.23967966]
[1756917999777,3.783,4465.0,4464.9,2.23967966]
[1756918000145,3.783,4465.0,4464.9,2.53687966]
[1756918001882,1.722,4465.1,4465.0,2.23964165]
[1756918002182,5.505,4465.1,4465.0,2.23964165]
[1756918002357,5.505,4465.1,4465.0,2.53684165]
[1756918003284,5.505,4465.1,4464.9,2.23968856]
[1756918003285,5.8032,4465.1,4464.9,2.23968856]
[1756918003482,5.8032,4465.1,4464.8,0.026]
[1756918003483,2.0202,4465.1,4465.0,2.23964165]
[1756918003793,5.505,4465.1,4465.0,2.53684165]
[1756918004284,5.505,4465.1,4464.9,2.23968538]
[1756918004480,5.8032,4465.1,4464.9,2.23968538]
[1756918004705,3.782,4465.0,4464.9,2.23968538]
[1756918004988,3.782,4465.0,4464.8,2.26573765]
[1756918005170,1.1967,4464.9,4464.8,0.026]
[1756918005350,1.3087,4464.9,4464.8,0.026]
[1756918006491,10.56839181,4464.9,4464.8,0.026]
[1756918006654,15.74891743,4464.9,4464.8,0.026]
[1756918008258,10.56839181,4464.9,4464.8,0.026]
[1756918008603,14.35039181,4464.9,4464.8,0.026]
[1756918009490,7.33039181,4464.9,4464.8,0.026]
[1756918011612,2.64989181,4464.9,4464.8,0.026]
[1756918011770,6.43189181,4464.9,4464.8,0.026]
[1756918012099,6.87709181,4464.9,4464.8,0.026]
[1756918012413,4.6374,4464.9,4464.8,0.026]
[1756918012706,7.33039181,4464.9,4464.8,0.026]
[1756918013636,5.0907,4464.9,4464.8,0.026]
[1756918013967,0.112,4464.9,4464.8,0.3232]
[1756918014170,4.3884,4464.9,4464.8,0.026]
[1756918014590,0.112,4464.9,4464.8,0.026]
[1756918014917,3.894,4464.9,4464.8,0.3232]
[1756918017422,3.782,4464.9,4464.8,2.56294198]
[1756918017730,3.782,4464.9,4464.8,0.3232]
[1756918017925,3.782,4464.9,4464.8,2.56294198]
[1756918018336,3.782,4464.9,4464.8,0.3232]
[1756918018654,3.782,4464.9,4464.8,2.56294198]
[1756918019210,3.782,4464.9,4464.8,3.03394198]
[1756918019512,3.782,4464.9,4464.8,2.56294198]
[1756918019730,3.782,4464.9,4464.8,0.3232]
[1756918019935,4.0938,4464.9,4464.8,0.026]
[1756918021237,0.3118,4464.9,4464.8,0.026]
[1756918021400,4.0938,4464.9,4464.8,0.026]
[1756918022205,0.114,4465.6,4464.8,1.59477826]
[1756918022408,0.4641,4465.5,4464.9,2.23965727]
[1756918022609,0.5761,4465.5,4464.9,0.112]
[1756918022820,3.782,4465.4,4464.9,0.112]
[1756918023097,0.4641,4465.3,4464.9,0.112]
[1756918023400,0.3118,4465.0,4464.8,0.026]
[1756918023624,3.782,4464.9,4464.8,0.026]
[1756918024192,3.782,4464.9,4464.8,0.3114]
[1756918024393,3.782,4464.9,4464.8,0.026]
[1756918025031,4.5579,4464.9,4464.8,0.026]
[1756918026173,5.0548,4464.9,4464.8,0.026]
[1756918027751,5.1668,4464.9,4464.8,0.026]
[1756918028962,7.40649181,4464.9,4464.8,0.026]
[1756918032593,13.62101639,4464.9,4464.8,0.026]
[1756918032889,16.62101639,4464.9,4464.8,0.026]
[1756918035885,23.64101639,4464.9,4464.8,0.026]
[1756918037086,17.42649181,4464.9,4464.8,0.026]
[1756918037287,16.96139181,4464.9,4464.8,0.026]
[1756918037587,14.2248,4464.9,4464.8,0.026]
[1756918037781,17.42549181,4464.9,4464.8,0.026]
[1756918038747,16.92859181,4464.9,4464.8,0.026]
[1756918039088,16.15269181,4464.9,4464.8,0.026]
[1756918039807,16.92859181,4464.9,4464.8,0.026]
[1756918040191,13.14759181,4464.9,4464.8,0.026]
[1756918040499,16.15269181,4464.9,4464.8,0.026]
[1756918041168,7.132,4464.9,4464.8,0.3114]
[1756918041368,7.132,4464.9,4464.8,0.8028]
[1756918041369,7.02,4464.9,4464.8,0.8028]
[1756918041705,10.801,4464.9,4464.8,0.8028]
[1756918042069,10.801,4464.9,4464.8,1.16248141]
[1756918042284,7.02,4464.9,4464.8,3.04254198]
[1756918042504,10.801,4464.9,4464.8,3.04254198]
[1756918043001,10.801,4464.9,4464.8,0.3114]
[1756918043299,12.0738,4464.9,4464.8,0.026]
[1756918043502,3.781,4464.9,4464.8,0.026]
[1756918043895,3.781,4464.9,4464.8,0.3114]
[1756918044403,6.02069181,4464.9,4464.8,0.026]
[1756918044976,6.79659181,4464.9,4464.8,0.026]
[1756918045287,4.0928,4464.9,4464.8,0.026]
[1756918045493,3.781,4464.9,4464.8,0.026]
[1756918045696,6.02069181,4464.9,4464.8,0.026]
[1756918046210,3.781,4464.9,4464.8,0.026]
[1756918047302,6.02069181,4464.9,4464.8,0.026]
[1756918047503,6.79659181,4464.9,4464.8,0.026]
[1756918047709,4.5569,4464.9,4464.8,0.026]
[1756918047910,6.33249181,4464.9,4464.8,0.026]
[1756918048116,6.79659181,4464.9,4464.8,0.026]
[1756918050179,7.27809181,4464.9,4464.8,0.026]
[1756918053325,6.02069181,4464.9,4464.8,0.026]
[1756918053486,6.78719181,4464.9,4464.8,0.026]
[1756918053688,6.33339181,4464.9,4464.8,0.026]
[1756918053918,6.02069181,4464.9,4464.8,0.026]
[1756918054588,6.33339181,4464.9,4464.8,0.026]
[1756918055189,7.27899181,4464.9,4464.8,0.026]
[1756918058623,6.78719181,4464.9,4464.8,0.026]
[1756918059027,6.78619181,4464.9,4464.8,0.026]
[1756918059590,13.80619181,4464.9,4464.8,0.026]
[1756918059791,13.35239181,4464.9,4464.8,0.026]
[1756918060014,10.8,4464.9,4464.8,0.3295]
[1756918060212,10.912,4464.9,4464.8,0.3295]
[1756918060418,11.2247,4464.9,4464.8,0.026]
[1756918060933,14.40999181,4464.9,4464.8,0.026]
[1756918063324,13.46439181,4464.9,4464.8,0.026]
[1756918063697,13.91819181,4464.9,4464.8,0.026]
[1756918064308,14.40999181,4464.9,4464.8,0.026]
[1756918064737,9.37169181,4464.9,4464.8,0.3295]
[1756918064920,13.15169181,4464.9,4464.8,0.3295]
[1756918065123,13.91819181,4464.9,4464.8,0.026]
[1756918065439,14.40999181,4464.9,4464.8,0.026]
[1756918066303,23.62451639,4464.9,4464.8,0.026]
[1756918066519,24.99696288,4464.9,4464.8,0.026]
[1756918067305,24.71887861,4464.9,4464.8,0.026]
[1756918067536,24.41651639,4464.9,4464.8,0.026]
[1756918071068,20.14471639,4464.9,4464.8,0.026]
[1756918071362,23.92471639,4464.9,4464.8,0.026]
[1756918071970,12.37169181,4464.9,4464.8,0.026]
[1756918072258,16.15169181,4464.9,4464.8,0.3295]
[1756918072457,16.15169181,4464.9,4464.8,0.026]
[1756918073019,5.35169181,4464.9,4464.8,0.026]
[1756918073215,9.13169181,4464.9,4464.8,0.3295]
[1756918073420,9.13169181,4464.9,4464.8,0.026]
[1756918073651,9.44439181,4464.9,4464.8,0.026]
[1756918074031,9.89819181,4464.9,4464.8,0.026]
[1756918075437,5.35169181,4464.9,4464.8,0.026]
[1756918075640,9.13169181,4464.9,4464.8,0.026]
[1756918075851,5.35169181,4464.9,4464.8,0.026]
[1756918076056,9.13169181,4464.9,4464.8,0.026]
[1756918076657,9.44439181,4464.9,4464.8,0.026]
[1756918077056,9.89819181,4464.9,4464.8,0.026]
[1756918077353,10.38999181,4464.9,4464.8,0.026]
[1756918077562,15.57118493,4464.9,4464.8,0.026]
[1756918080671,15.07938493,4464.9,4464.8,0.026]
[1756918080874,15.55028493,4464.9,4464.8,0.026]
[1756918084097,14.31188493,4464.9,4464.8,0.3371]
[1756918084584,14.31188493,4464.9,4464.8,0.026]
[1756918085251,10.83168493,4464.9,4464.8,0.026]
[1756918085580,15.54548493,4464.9,4464.8,0.026]
[1756918085743,15.07458493,4464.9,4464.8,0.026]
[1756918085941,5.35169181,4464.9,4464.8,0.3371]
[1756918086178,9.13069181,4464.9,4464.8,0.3371]
[1756918086775,9.42949181,4464.9,4464.8,0.026]
[1756918086962,9.89339181,4464.9,4464.8,0.026]
[1756918087844,9.42949181,4464.9,4464.8,0.026]
[1756918088046,9.13069181,4464.9,4464.8,0.026]
[1756918089481,16.15069181,4464.9,4464.8,0.026]
[1756918090478,21.33188493,4464.9,4464.8,0.026]
[1756918090778,21.63068493,4464.9,4464.8,0.026]
[1756918090983,16.63984715,4464.9,4464.8,0.026]
[1756918091289,16.6155692,4464.9,4464.8,0.026]
[1756918091846,16.33748493,4464.9,4464.8,0.026]
[1756918092047,15.54548493,4464.9,4464.8,0.026]
[1756918102504,14.31088493,4464.9,4464.8,0.3371]
[1756918103169,14.31088493,4464.9,4464.8,0.026]
[1756918103372,14.31088493,4464.9,4464.8,0.3371]
[1756918105308,10.53288493,4464.9,4464.8,0.3371]
[1756918105614,14.31088493,4464.9,4464.8,0.3371]
[1756918107014,10.53288493,4464.9,4464.8,0.3371]
[1756918107213,17.55288493,4464.9,4464.8,0.3371]
[1756918107374,21.33088493,4464.9,4464.8,0.3371]
[1756918107775,21.33088493,4464.9,4464.8,0.026]
[1756918107989,22.09358493,4464.9,4464.8,0.026]
[1756918108306,21.33088493,4464.9,4464.8,0.026]
[1756918108505,17.55288493,4464.9,4464.8,0.3371]
[1756918108719,21.33088493,4464.9,4464.8,0.3371]
[1756918110016,17.55288493,4464.9,4464.8,0.3371]
[1756918110314,21.33088493,4464.9,4464.8,0.3371]
[1756918110714,21.63008493,4464.9,4464.8,0.026]
[1756918110921,21.33088493,4464.9,4464.8,0.026]
[1756918112430,21.33088493,4464.9,4464.8,0.3226]
[1756918113290,7.132,4464.9,4464.8,1.2931]
[1756918113515,10.91,4464.9,4464.8,1.42241]
[1756918113713,10.91,4464.9,4464.8,1.2931]
[1756918114319,13.14969181,4464.9,4464.8,0.8196]
[1756918114494,10.91,4464.9,4464.8,0.8196]
[1756918114696,10.91,4464.9,4464.8,0.3226]
[1756918115080,7.132,4464.9,4464.8,0.3226]
[1756918115393,13.14969181,4464.9,4464.8,1.2931]
[1756918115913,10.91,4464.9,4464.8,1.2931]
[1756918116116,13.14969181,4464.9,4464.8,1.2931]
[1756918116315,10.91,4464.9,4464.8,1.2931]
[1756918116813,10.91,4464.9,4464.8,0.8196]
[1756918117831,10.91,4464.9,4464.8,1.2931]
[1756918117995,10.91,4464.9,4464.8,0.8196]
[1756918118322,10.909,4464.9,4464.8,0.8196]
[1756918118686,10.909,4464.9,4464.8,0.3226]
[1756918119028,13.14869181,4464.9,4464.8,0.3226]
[1756918119183,10.909,4464.9,4464.8,0.3226]
[1756918119696,13.14869181,4464.9,4464.8,0.3226]
[1756918119896,13.14869181,4464.9,4464.8,0.026]
[1756918119897,17.37389181,4464.9,4464.8,0.026]
[1756918120111,12.37169181,4464.9,4464.8,0.026]
[1756918120296,21.32988493,4464.9,4464.8,0.3226]
[1756918120500,21.62908493,4464.9,4464.8,0.026]
[1756918120724,22.06548493,4464.9,4464.8,0.026]
[1756918121927,13.10729181,4464.9,4464.8,0.026]
[1756918122101,22.06548493,4464.9,4464.8,0.026]
[1756918122737,22.55508493,4464.9,4464.8,0.026]
[1756918122910,22.8331692,4464.9,4464.8,0.026]
[1756918123107,22.55508493,4464.9,4464.8,0.026]
[1756918124293,22.06548493,4464.9,4464.8,0.026]
[1756918124498,22.55508493,4464.9,4464.8,0.026]
[1756918125124,18.77808493,4464.9,4464.8,0.026]
[1756918125297,22.55508493,4464.9,4464.8,0.026]
[1756918128536,22.06448493,4464.9,4464.8,0.026]
[1756918128905,22.55408493,4464.9,4464.8,0.026]
[1756918129734,23.92653142,4464.9,4464.8,0.026]
[1756918129937,23.6241692,4464.9,4464.8,0.026]
[1756918133244,23.34608493,4464.9,4464.8,0.026]
[1756918134423,6.993,4464.4,4462.8,0.4735]
[1756918134623,3.0,4464.8,4462.8,0.4735]
[1756918134624,5.18119312,4463.5,4462.8,0.4735]
[1756918134824,10.769,4463.4,4462.8,0.4735]
[1756918135022,0.112,4463.3,4462.8,0.4735]
[1756918135238,3.776,4463.2,4462.8,0.4735]
[1756918135442,3.776,4463.2,4463.1,0.2966]
[1756918135751,4.44970237,4463.2,4463.1,1.2671]
[1756918136315,4.44970237,4463.2,4463.1,0.2966]
[1756918136516,4.44970237,4463.2,4463.1,0.7701]
[1756918138352,4.44970237,4463.2,4463.1,0.2966]
[1756918140530,0.67370237,4463.2,4463.1,1.2001]
[1756918140854,0.67370237,4463.2,4463.1,3.78476862]
[1756918140855,3.776,4463.2,4463.1,3.78476862]
[1756918141039,2.39661009,4463.7,4463.3,2.24045597]
[1756918141381,1.723,4463.7,4463.2,0.4475]
[1756918141525,1.723,4463.7,4463.3,0.62161735]
[1756918141526,3.776,4463.6,4463.3,0.62161735]
[1756918141727,1.723,4463.7,4463.6,2.24034411]
[1756918141931,5.499,4463.7,4463.6,3.44294411]
[1756918142260,5.499,4463.7,4463.6,3.44293482]
[1756918142261,3.776,4463.7,4463.6,3.44293482]
[1756918142418,0.025,4463.8,4463.7,2.24029392]
[1756918142618,0.025,4463.8,4463.7,3.72331679]
[1756918142851,0.025,4463.8,4463.7,4.02241679]
[1756918143050,0.05,4463.8,4463.7,4.02241679]
[1756918144026,0.05,4463.8,4463.7,0.7551]
[1756918144359,0.05,4463.8,4463.7,3.44289392]
[1756918147068,0.025,4463.8,4463.7,3.44289392]
[1756918150858,0.025,4463.8,4463.7,2.53939392]
[1756918153694,0.7804,4463.8,4463.6,2.24033884]
[1756918154187,0.025,4463.8,4463.7,2.53939392]
[1756918156064,0.7804,4463.8,4463.6,0.112]
[1756918156249,0.025,4463.8,4463.7,0.2991]
[1756918156450,0.025,4463.8,4463.7,2.53939392]
[1756918156652,0.69857076,4463.8,4463.7,2.53939392]
[1756918157585,1.45397076,4463.8,4463.6,0.112]
[1756918157746,0.4452,4463.7,4463.6,0.112]
[1756918157951,0.4452,4463.7,4463.3,2.24049107]
[1756918158247,4.47357076,4463.8,4463.4,0.112]
[1756918158446,3.8,4463.8,4463.5,2.24034752]
[1756918158681,0.67358892,4463.7,4463.5,2.24034752]
[1756918158882,0.67358892,4463.7,4463.4,0.112]
[1756918159085,3.8,4463.8,4463.5,2.24035835]
[1756918159795,3.8,4463.8,4463.7,0.2991]
[1756918159965,3.8,4463.8,4463.5,2.24038345]
[1756918160166,0.67358891,4463.7,4463.5,2.24038345]
[1756918160692,0.67358891,4463.7,4463.4,0.112]
[1756918160896,0.67358891,4463.7,4463.6,0.2991]
[1756918161098,0.67358891,4463.7,4463.6,2.53944411]
[1756918161298,0.67358891,4463.7,4463.6,0.2991]
[1756918161797,0.67358891,4463.7,4463.6,2.53944411]
[1756918162311,0.67358891,4463.7,4463.6,0.2991]
[1756918162783,0.67358891,4463.7,4463.6,2.53944411]
[1756918163198,0.67358891,4463.7,4463.6,0.2991]
[1756918163768,0.67358891,4463.7,4463.6,2.53944411]
[1756918164180,0.67358891,4463.7,4463.6,0.2991]
[1756918165398,0.67358891,4463.7,4463.6,2.53944411]
[1756918165603,0.67358891,4463.7,4463.6,0.2991]
[1756918166303,0.70058135,4463.8,4463.6,0.2991]
[1756918166892,2.2403819,4463.6,4463.4,0.112]
[1756918167099,2.2403819,4463.6,4463.1,0.001]
[1756918167100,4.5606,4463.5,4463.1,0.001]
[1756918167406,5.0058,4463.5,4463.1,0.001]
[1756918167610,1.11885698,4463.4,4463.1,0.001]
[1756918168103,0.3102,4463.2,4463.1,0.001]
[1756918168680,1.2318,4463.2,4463.1,0.001]
[1756918169001,3.4723449,4463.2,4463.1,0.001]
[1756918170480,7.2463449,4463.2,4463.1,0.001]
[1756918170805,5.0058,4463.2,4463.1,0.001]
[1756918171976,4.5294,4463.2,4463.1,0.001]
[1756918172713,0.3102,4463.2,4463.1,0.001]
[1756918173005,0.112,4463.3,4463.1,0.3119]
[1756918173308,3.774,4463.2,4463.1,0.3119]
[1756918173470,4.0867,4463.2,4463.1,0.001]
[1756918173670,4.549,4463.2,4462.9,0.112]
[1756918173867,4.0867,4463.2,4462.9,0.112]
[1756918174576,3.774,4463.2,4462.9,0.112]
[1756918174918,0.112,4463.3,4463.2,2.2405449]
[1756918175085,0.112,4464.1,4463.5,2.24038822]
[1756918175287,3.774,4463.7,4463.6,2.24031711]
[1756918175475,0.70057076,4463.8,4463.7,2.35229392]
[1756918175674,0.027,4463.8,4463.7,2.35229392]
[1756918175875,0.027,4463.8,4463.7,0.4229]
[1756918177114,0.027,4463.8,4463.7,2.66319392]
[1756918177416,0.027,4463.8,4463.7,3.04983676]
[1756918177604,0.027,4463.8,4463.7,3.98683676]
[1756918178008,0.027,4463.8,4463.7,3.04983676]
[1756918179104,0.027,4463.8,4463.7,3.98683676]
[1756918179285,0.027,4463.8,4463.7,3.04983676]
[1756918179482,0.027,4463.8,4463.7,0.49864284]
[1756918179715,0.027,4463.8,4463.7,0.80954284]
[1756918179907,0.027,4463.8,4463.7,3.04983676]
[1756918180516,0.027,4463.8,4463.7,3.49003676]
[1756918181285,0.027,4463.8,4463.7,3.04983676]
[1756918181918,0.027,4463.8,4463.7,3.98683676]
[1756918182486,0.027,4463.8,4463.7,3.04983676]
[1756918182686,0.027,4463.8,4463.7,2.73893676]
[1756918182687,0.3397,4463.8,4463.7,2.73893676]
[1756918182889,0.027,4463.8,4463.7,2.35229392]
[1756918183520,0.027,4463.8,4463.7,2.66319392]
[1756918183721,0.027,4463.8,4463.7,2.35229392]
[1756918184032,0.3397,4463.8,4463.7,0.112]
[1756918184234,0.802,4463.8,4463.7,0.112]
[1756918184939,0.027,4463.8,4463.7,0.112]
[1756918185115,0.027,4463.8,4463.7,2.35229392]
[1756918185519,0.027,4463.8,4463.7,0.112]
[1756918185721,0.027,4463.8,4463.7,2.35229392]
[1756918186028,0.027,4463.8,4463.7,2.66319392]
[1756918186638,0.027,4463.8,4463.7,2.35229392]
[1756918187049,0.027,4463.8,4463.7,2.66319392]
[1756918187246,0.027,4463.8,4463.7,2.52519392]
[1756918188110,0.027,4463.8,4463.7,2.21429392]
[1756918188311,0.027,4463.8,4463.7,0.112]
[1756918188541,0.027,4463.8,4463.7,2.35229392]
[1756918188959,0.3397,4463.8,4463.7,0.112]
[1756918189106,0.027,4463.8,4463.7,2.35229392]
[1756918189308,0.027,4463.8,4463.7,2.66319392]
[1756918189543,0.027,4463.8,4463.7,3.15355135]
[1756918190046,0.027,4463.8,4463.7,2.84265135]
[1756918190207,0.3397,4463.8,4463.7,2.35229392]
[1756918190407,0.802,4463.8,4463.7,2.35229392]
[1756918190625,0.027,4463.8,4463.7,2.35229392]
[1756918190928,0.027,4463.8,4463.7,2.66319392]
[1756918191843,0.027,4463.8,4463.7,2.35229392]
[1756918192150,0.027,4463.8,4463.7,2.66319392]
[1756918193047,0.027,4463.8,4463.7,2.35229392]
[1756918193828,0.3397,4463.8,4463.7,2.35229392]
[1756918194035,0.802,4463.8,4463.7,2.35229392]
[1756918194470,0.802,4463.8,4463.7,0.112]
[1756918194936,0.802,4463.8,4463.7,2.35229392]
[1756918195850,0.027,4463.8,4463.7,2.66319392]
[1756918196057,0.027,4463.8,4463.7,3.50155165]
[1756918196456,0.027,4463.8,4463.7,4.02075458]
[1756918196749,0.027,4463.8,4463.7,4.43855165]
[1756918198160,0.027,4463.8,4463.7,8.21055165]
[1756918198761,0.027,4463.8,4463.7,7.77035165]
[1756918199062,0.027,4463.8,4463.7,7.27355165]
[1756918200168,0.027,4463.8,4463.7,8.19785165]
[1756918200368,0.027,4463.8,4463.7,7.27355165]
[1756918200564,0.027,4463.8,4463.7,6.96265165]
[1756918200766,0.027,4463.8,4463.7,7.24855165]
[1756918201065,0.027,4463.8,4463.7,8.17285165]
[1756918201867,0.027,4463.8,4463.7,3.19065165]
[1756918202070,1.2644,4463.8,4463.7,0.112]
[1756918202370,3.0,4463.7,4463.2,0.001]
[1756918202530,2.2403004,4463.7,4463.2,0.001]